[Event "55th Rubinstein Memorial-C 2019"]
[Site "Polanica-Zdroj"]
[Date "2019.08.21"]
[Round "5.24"]
[White "Maslo, Slawomir"]
[Black "Ciesielski, Maciej"]
[Result "1-0"]
[ECO "A34"]
[WhiteElo "1687"]
[BlackElo "1486"]
[Annotator "NA"]
[PlyCount "117"]
[EventDate "2019.08.17"]
[EventType "swiss"]
[EventCountry "POL"]
[SourceTitle "playchess.com"]
[Source "ChessBase"]
[SourceQuality "1"]
[TimeControl "40/5400+30:1800+30"]

1. c4 {[%emt 0:04:16]} c5 {[%emt 0:00:00]} 2. g3 {[%emt 0:00:07]} Nf6 {[%emt 0:00:00]} 3. Nc3 {[%emt 0:00:23]} Nc6 {[%emt 0:00:06]} 4. Bg2 {[%emt 0:00:20]} e6 {[%emt 0:00:12]} 5. Nf3 {[%emt 0:00:22]} d5 {[%emt 0:01:03]} 6. cxd5 {[%emt 0:00:15]} exd5 {[%emt 0:00:04]} 7. d4 {[%emt 0:00:16]} cxd4 {[%emt 0:01:08]} 8. Nxd4 {[%emt 0:00:21]} Bc5 {[%emt 0:01:28]} 9. Be3 {[%emt 0:03:18]} Qb6 {[%emt 0:04:52]} 10. Na4 {[%emt 0:26:39]} Qb4+ {[%emt 0:00:47]} 11. Bd2 {[%emt 0:00:19]} Qxd4 {[%emt 0:03:50]} 12. e3 {[%emt 0:00:17]} Qd3 {[%emt 0:11:54]} 13. Nxc5 {[%emt 0:00:52]} Qb5 {[%emt 0:00:08]} 14. Nb3 {[%emt 0:07:09]} Ne5 {[%emt 0:00:54]} 15. Bf1 {[%emt 0:03:40]} Nd3+ {[%emt 0:01:39]} 16. Bxd3 {[%emt 0:00:13]} Qxd3 {[%emt 0:00:07]} 17. Bc3 {[%emt 0:00:07]} Qxd1+ {[%emt 0:00:12]} 18. Rxd1 {[%emt 0:00:08]} Bg4 {[%emt 0:00:29]} 19. Rd4 {[%emt 0:01:52]} Bf3 {[%emt 0:00:24]} 20. O-O {[%emt 0:00:28]} O-O-O {[%emt 0:03:09]} 21. Rf4 Bh5 {[%emt 0:05:32]} 22. Bxf6 {[%emt 0:03:14]} gxf6 {[%emt 0:00:06]} 23. Rxf6 {[%emt 0:00:07]} Rhe8 {[%emt 0:01:47]} 24. Nd4 {[%emt 0:02:02]} Kb8 {[%emt 0:02:09]} 25. h3 {[%emt 0:05:50]} Bg6 26. Rd1 Re4 {[%emt 0:06:41]} 27. a4 {[%emt 0:04:54]} a6 {[%emt 0:00:53]} 28. b4 {[%emt 0:04:29]} Rc8 {[%emt 0:01:27]} 29. a5 {[%emt 0:04:43]} Rc4 {[%emt 0:00:44]} 30. b5 {[%emt 0:00:36]} axb5 {[%emt 0:00:29]} 31. Nxb5 {[%emt 0:00:28]} Rc5 {[%emt 0:00:28]} 32. Rb6 {[%emt 0:09:39]} Ra4 {[%emt 0:01:03]} 33. Nd6 {[%emt 0:01:17]} Rcxa5 {[%emt 0:01:25]} 34. Rxb7+ {[%emt 0:00:27]} Ka8 {[%emt 0:00:07]} 35. Rc1 {[%emt 0:01:07]} Ra1 {[%emt 0:00:09]} 36. Rbc7 {[%emt 0:02:24]} Ra6 37. Nc8 Kb8 {[%emt 0:03:06]} 38. Ne7 {[%emt 0:01:18]} Be4 {[%emt 0:00:17]} 39. g4 {[%emt 0:03:23]} R6a2 {[%emt 0:05:55]} 40. R7c3 {[%emt 0:01:00]} Rxc1+ {[%emt 0:00:28]} 41. Rxc1 {[%emt 0:30:09]} f6 {[%emt 0:32:00]} 42. Ng8 {[%emt 0:01:28]} f5 {[%emt 0:00:19]} 43. Nf6 {[%emt 0:00:28]} Rc2 {[%emt 0:01:03]} 44. Rxc2 {[%emt 0:00:30]} Bxc2 {[%emt 0:00:07]} 45. Nxd5 {[%emt 0:00:17]} fxg4 {[%emt 0:00:14]} 46. hxg4 {[%emt 0:00:09]} Kc8 {[%emt 0:00:02]} 47. Kh2 {[%emt 0:00:39]} Kd7 {[%emt 0:00:08]} 48. Kg3 {[%emt 0:00:30]} Ke6 {[%emt 0:00:12]} 49. Nf4+ {[%emt 0:00:13]} Ke5 {[%emt 0:00:14]} 50. f3 {[%emt 0:00:07]} Kf6 {[%emt 0:01:01]} 51. e4 {[%emt 0:00:15]} Ke5 {[%emt 0:00:25]} 52. g5 {[%emt 0:00:56]} Ba4 {[%emt 0:00:48]} 53. Nh5 {[%emt 0:00:20]} Bc2 {[%emt 0:01:57]} 54. Nf6 {[%emt 0:00:23]} Ba4 {[%emt 0:00:34]} 55. Nxh7 {[%emt 0:00:17]} Ke6 {[%emt 0:00:08]} 56. f4 {[%emt 0:00:22]} Kf7 {[%emt 0:00:11]} 57. f5 {[%emt 0:00:23]} Kg7 {[%emt 0:00:11]} 58. Nf6 {[%emt 0:00:12]} Bc2 {[%emt 0:00:07]} 59. Kf4 {[%emt 0:00:07]} 1-0

[Event "55th Rubinstein Memorial-C 2019"]
[Site "Polanica-Zdroj"]
[Date "2019.08.21"]
[Round "5.25"]
[White "Binkowska, Agata"]
[Black "Babczynski, Zbigniew"]
[Result "1-0"]
[ECO "B34"]
[WhiteElo "1896"]
[BlackElo "1551"]
[Annotator "NA"]
[PlyCount "47"]
[EventDate "2019.08.17"]
[EventType "swiss"]
[EventCountry "POL"]
[SourceTitle "playchess.com"]
[Source "ChessBase"]
[SourceQuality "1"]
[TimeControl "40/5400+30:1800+30"]

1. e4 {[%emt 0:00:00]} c5 {[%emt 0:00:00]} 2. Nf3 {[%emt 0:00:00]} g6 {[%emt 0:00:00]} 3. d4 {[%emt 0:00:00]} cxd4 {[%emt 0:00:00]} 4. Nxd4 {[%emt 0:00:00]} Nc6 {[%emt 0:00:47]} 5. Nc3 {[%emt 0:00:17]} Bg7 {[%emt 0:00:15]} 6. Be3 {[%emt 0:01:10]} Nf6 {[%emt 0:00:27]} 7. f3 {[%emt 0:08:47]} Qb6 {[%emt 0:03:58]} 8. Nf5 {[%emt 0:17:35]} Qxb2 {[%emt 0:04:13]} 9. Nxg7+ {[%emt 0:07:06]} Kf8 {[%emt 0:00:11]} 10. Na4 {[%emt 0:02:02]} Qb4+ {[%emt 0:00:21]} 11. c3 {[%emt 0:02:07]} Qa5 {[%emt 0:01:04]} 12. Bh6 {[%emt 0:03:01]} Ng8 {[%emt 0:00:55]} 13. Qd2 {[%emt 0:08:59]} Nxh6 $18 {[%emt 0:04:34]} 14. Qxh6 Qe5 {[%emt 0:13:35]} 15. Nf5+ {[%emt 0:16:20]} Ke8 {[%emt 0:02:04]} 16. Ng3 {[%emt 0:00:27]} b5 17. Nb2 g5 {[%emt 0:08:10]} 18. Rc1 {[%emt 0:02:50]} Qf4 {[%emt 0:17:04]} 19. Ne2 {[%emt 0:01:43]} Qe3 {[%emt 0:03:17]} 20. Nd1 {[%emt 0:05:20]} Qc5 {[%emt 0:00:11]} 21. Qg7 {[%emt 0:00:36]} Rf8 {[%emt 0:00:01]} 22. Nd4 {[%emt 0:01:52]} Ne5 {[%emt 0:02:01]} 23. Nb3 {[%emt 0:03:09]} Qb6 {[%emt 0:03:44]} 24. Qxe5 {[%emt 0:00:10]} 1-0

[Event "55th Rubinstein Memorial-C 2019"]
[Site "Polanica-Zdroj"]
[Date "2019.08.21"]
[Round "5.26"]
[White "Pisarek, Elzbieta"]
[Black "Mackiewicz, Anna"]
[Result "1-0"]
[ECO "C07"]
[WhiteElo "1581"]
[BlackElo "1861"]
[Annotator "NA"]
[PlyCount "101"]
[EventDate "2019.08.17"]
[EventType "swiss"]
[EventCountry "POL"]
[SourceTitle "playchess.com"]
[Source "ChessBase"]
[SourceQuality "1"]
[TimeControl "40/5400+30:1800+30"]

1. e4 {[%emt 0:00:00]} e6 {[%emt 0:00:00]} 2. d4 {[%emt 0:00:00]} d5 {[%emt 0:00:00]} 3. Nd2 {[%emt 0:00:00]} c5 {[%emt 0:00:00]} 4. exd5 {[%emt 0:01:10]} Qxd5 {[%emt 0:01:23]} 5. dxc5 {[%emt 0:03:13]} Bxc5 {[%emt 0:00:33]} 6. Ngf3 {[%emt 0:00:18]} Nf6 {[%emt 0:01:07]} 7. Bc4 {[%emt 0:04:16]} Qd6 {[%emt 0:07:42]} 8. O-O {[%emt 0:00:31]} Qc7 {[%emt 0:00:41]} 9. Qe2 {[%emt 0:03:56] C07: French Tarrasch: 3...c5, 4 Ngf3 and 4 exd5 Qxd5} Nc6 {[%emt 0:00:43]} 10. Ne4 {[%emt 0:04:12]} Nxe4 {[%emt 0:06:07]} (10... Be7 11. Rd1 h6 12. Nxf6+ Bxf6 13. Qe4 Ne5 14. Bb5+ Bd7 15. Nxe5 Bxb5 16. Bf4 Bc6 {½-½ (73) Naiditsch,A (2689)-Hou,Y (2588) Khanty-Mansiysk 2009}) 11. Qxe4 {[%emt 0:01:36]} Bd6 {[%emt 0:02:20]} 12. Re1 {[%emt 0:08:13]} Bd7 {[%emt 0:02:34]} 13. Qg4 $146 {[%emt 0:18:57]} ({Predecessor:} 13. Bd2) 13... Ne5 {[%emt 0:05:33]} 14. Nxe5 {[%emt 0:03:12]} Bxe5 {[%emt 0:02:15]} 15. h3 O-O-O {[%emt 0:07:18]} 16. c3 {[%emt 0:03:28]} h5 {[%emt 0:07:41]} 17. Qe2 {[%emt 0:00:50]} Bf6 18. Be3 {[%emt 0:00:30]} Kb8 19. Rac1 {[%emt 0:06:21]} g5 {[%emt 0:05:48]} 20. Bd4 {[%emt 0:01:31]} Bxd4 {[%emt 0:04:53]} 21. cxd4 {[%emt 0:00:05]} Qb6 {[%emt 0:01:36]} 22. d5 {[%emt 0:03:52]} exd5 {[%emt 0:04:01]} 23. Qe5+ {[%emt 0:01:15]} Ka8 {[%emt 0:00:52]} 24. Bxd5 {[%emt 0:01:30]} g4 {[%emt 0:13:52]} 25. hxg4 {[%emt 0:05:07]} hxg4 {[%emt 0:00:31]} 26. Qc7 {[%emt 0:13:32]} Qa6 {[%emt 0:03:26]} 27. Rc5 {[%emt 0:10:06]} g3 {[%emt 0:13:37]} (27... Qb6 $1 $11 {keeps the balance.}) 28. Qxg3 {[%emt 0:02:26]} (28. fxg3 $16 Be6 29. Ra5) 28... Qh6 {[%emt 0:02:24]} 29. f4 {[%emt 0:02:07]} Qb6 {[%emt 0:01:42]} 30. Rec1 {[%emt 0:01:25]} Bf5 {[%emt 0:03:41]} 31. Qb3 {[%emt 0:00:52]} ({Avoid the trap} 31. Bxf7 $2 Qf6 $19) 31... Qxb3 $18 {[%emt 0:02:16]} (31... Bg4 $16 {was necessary.}) 32. Bxb3 {[%emt 0:00:20]} Be4 {[%emt 0:00:04]} 33. Bxf7 {[%emt 0:00:41]} a6 {[%emt 0:00:47]} 34. Be6 {[%emt 0:00:12]} Ka7 {[%emt 0:00:33]} 35. Rc8 {[%emt 0:00:37]} Bc6 {[%emt 0:00:16]} 36. Rxd8 {[%emt 0:00:11]} Rxd8 {[%emt 0:00:02]} 37. Rc2 {[%emt 0:00:43]} Rd1+ {[%emt 0:00:08]} 38. Kf2 {[%emt 0:00:13]} Rh1 {[%emt 0:00:30]} 39. f5 {[%emt 0:00:10]} Rh2 {[%emt 0:00:33]} 40. Kg3 {[%emt 0:00:12]} Rh5 {[%emt 0:00:11]} 41. Kf4 {[%emt 0:30:50]} Rh4+ {[%emt 0:31:35]} 42. g4 {[%emt 0:00:32]} Rh1 {[%emt 0:00:26]} 43. f6 {[%emt 0:00:15]} Re1 {[%emt 0:00:36]} 44. f7 {[%emt 0:00:41]} Bb5 {[%emt 0:01:10]} 45. Rf2 {[%emt 0:00:46]} Rxe6 {[%emt 0:00:12]} 46. f8=Q {[%emt 0:00:08]} Rc6 47. Rd2 {[%emt 0:00:32]} Rc1 {[%emt 0:00:21]} 48. Qh8 {[%emt 0:00:30]} Rf1+ {[%emt 0:00:17]} 49. Kg5 {[%emt 0:00:18]} Bc6 {[%emt 0:00:43]} 50. Qd4+ {[%emt 0:00:41]} Ka8 {[%emt 0:00:23]} 51. Qb6 {[%emt 0:00:24]} 1-0

[Event "55th Rubinstein Memorial-C 2019"]
[Site "Polanica-Zdroj"]
[Date "2019.08.21"]
[Round "5.27"]
[White "Pisarek, Jan"]
[Black "Bogdanov, Maxim A."]
[Result "0-1"]
[ECO "C42"]
[WhiteElo "1556"]
[BlackElo "1763"]
[Annotator "NA"]
[PlyCount "114"]
[EventDate "2019.08.17"]
[EventType "swiss"]
[EventCountry "POL"]
[SourceTitle "playchess.com"]
[Source "ChessBase"]
[SourceQuality "1"]
[TimeControl "40/5400+30:1800+30"]

1. e4 {[%emt 0:00:00]} e5 {[%emt 0:00:00]} 2. Nf3 {[%emt 0:00:00]} Nf6 {[%emt 0:00:00]} 3. Nxe5 {[%emt 0:00:10]} d6 {[%emt 0:00:00]} 4. Nf3 {[%emt 0:00:07]} Nxe4 {[%emt 0:00:00]} 5. Nc3 {[%emt 0:01:11]} Nxc3 {[%emt 0:00:00]} 6. dxc3 {[%emt 0:00:07]} Be7 {[%emt 0:00:03]} 7. Bf4 {[%emt 0:01:20]} O-O {[%emt 0:00:35]} 8. Qd2 {[%emt 0:00:45]} Nd7 {[%emt 0:03:44]} 9. O-O-O {[%emt 0:09:13]} Nc5 {[%emt 0:00:20]} 10. h4 {[%emt 0:13:07]} Bg4 {[%emt 0:01:57]} 11. Bd3 {[%emt 0:05:04]} Nxd3+ {[%emt 0:02:47]} 12. Qxd3 {[%emt 0:00:33]} Qd7 {[%emt 0:00:48]} 13. a3 {[%emt 0:09:07]} Qf5 {[%emt 0:02:13]} 14. Qxf5 {[%emt 0:13:03]} Bxf5 {[%emt 0:01:12]} 15. Nd4 {[%emt 0:00:26]} Bd7 {[%emt 0:00:18]} 16. Bg3 {[%emt 0:03:24]} Rfe8 {[%emt 0:01:28]} 17. Rhe1 {[%emt 0:00:59]} h5 {[%emt 0:00:28]} 18. Re2 {[%emt 0:03:37]} Bf6 {[%emt 0:00:16]} 19. Rde1 {[%emt 0:00:49]} Rxe2 {[%emt 0:01:49]} 20. Rxe2 {[%emt 0:00:06]} Kf8 {[%emt 0:00:20]} 21. Kd2 {[%emt 0:00:50]} Re8 {[%emt 0:01:21]} 22. Rxe8+ Kxe8 23. f3 {[%emt 0:08:00]} Ke7 {[%emt 0:00:18]} 24. Ne2 {[%emt 0:08:50]} g6 {[%emt 0:07:05]} 25. Nf4 {[%emt 0:02:25]} c6 {[%emt 0:00:17]} 26. Nd3 {[%emt 0:00:43]} a5 {[%emt 0:01:52]} 27. Bf2 {[%emt 0:12:00]} b5 {[%emt 0:01:52]} 28. g3 {[%emt 0:01:07]} c5 {[%emt 0:00:20]} 29. Be3 {[%emt 0:01:11]} Bc6 {[%emt 0:00:21]} 30. Ke2 {[%emt 0:02:03]} b4 {[%emt 0:09:28]} 31. axb4 {[%emt 0:01:31]} axb4 {[%emt 0:00:16]} 32. Bd2 {[%emt 0:00:48]} bxc3 {[%emt 0:00:52]} 33. Bxc3 {[%emt 0:00:30]} Bxc3 {[%emt 0:00:29]} 34. bxc3 {[%emt 0:00:04]} Kf6 {[%emt 0:06:45]} 35. Ke3 {[%emt 0:00:45]} Ba4 {[%emt 0:00:38]} 36. Ne1 {[%emt 0:00:38]} Ke5 {[%emt 0:01:39]} 37. Kd3 {[%emt 0:01:14]} Bc6 {[%emt 0:05:13]} 38. Ke3 {[%emt 0:00:51]} Kd5 {[%emt 0:02:37]} 39. Kd3 {[%emt 0:01:08]} Bb5+ {[%emt 0:01:29]} 40. Ke3 {[%emt 0:00:15]} Kc4 {[%emt 0:00:12]} 41. Kd2 {[%emt 0:30:05]} Bc6 {[%emt 0:30:15]} 42. f4 {[%emt 0:00:51]} Be4 {[%emt 0:03:47]} 43. Nd3 {[%emt 0:00:06]} Bxd3 {[%emt 0:00:14]} 44. cxd3+ {[%emt 0:00:06]} Kb3 {[%emt 0:00:06]} 45. c4 {[%emt 0:01:13]} Kb2 {[%emt 0:01:54]} 46. Ke2 {[%emt 0:00:09]} Kc2 {[%emt 0:00:08]} 47. Ke3 {[%emt 0:00:08]} Kd1 {[%emt 0:04:17]} 48. f5 {[%emt 0:01:28]} Ke1 {[%emt 0:09:54]} 49. fxg6 {[%emt 0:00:35]} fxg6 {[%emt 0:00:07]} 50. Kf4 {[%emt 0:00:19]} Kf2 {[%emt 0:00:22]} 51. g4 {[%emt 0:00:23]} Ke2 {[%emt 0:01:41]} 52. gxh5 {[%emt 0:00:50]} gxh5 {[%emt 0:00:07]} 53. Kg5 {[%emt 0:00:22]} Kxd3 {[%emt 0:00:06]} 54. Kxh5 {[%emt 0:00:03]} Kxc4 {[%emt 0:00:06]} 55. Kg4 {[%emt 0:01:15]} Kd5 {[%emt 0:01:27]} 56. Kg5 {[%emt 0:00:50]} c4 {[%emt 0:00:12]} 57. h5 {[%emt 0:00:02]} c3 {[%emt 0:00:13]} 0-1

[Event "55th Rubinstein Memorial-C 2019"]
[Site "Polanica-Zdroj"]
[Date "2019.08.21"]
[Round "5.28"]
[White "Matuszczyk, Mateusz"]
[Black "Mulawa, Cyprian"]
[Result "1-0"]
[ECO "B33"]
[WhiteElo "1808"]
[BlackElo "1578"]
[Annotator "NA"]
[PlyCount "63"]
[EventDate "2019.08.17"]
[EventType "swiss"]
[EventCountry "POL"]
[SourceTitle "playchess.com"]
[Source "ChessBase"]
[SourceQuality "1"]
[TimeControl "40/5400+30:1800+30"]

1. e4 {[%emt 0:00:00]} c5 {[%emt 0:00:00]} 2. Nf3 {[%emt 0:00:00]} Nc6 {[%emt 0:00:00]} 3. d4 {[%emt 0:00:00]} cxd4 {[%emt 0:00:00]} 4. Nxd4 {[%emt 0:00:00]} Nf6 {[%emt 0:00:11]} 5. Nc3 {[%emt 0:00:00]} e5 {[%emt 0:00:10]} 6. Ndb5 {[%emt 0:00:00]} d6 {[%emt 0:00:09]} 7. Bg5 {[%emt 0:00:47]} a6 {[%emt 0:00:16]} 8. Na3 {[%emt 0:01:28]} b5 {[%emt 0:00:07]} 9. Bxf6 {[%emt 0:00:01]} gxf6 {[%emt 0:00:07]} 10. Nd5 {[%emt 0:00:04]} f5 {[%emt 0:00:38]} 11. exf5 {[%emt 0:00:59]} Bxf5 {[%emt 0:00:34]} 12. c3 {[%emt 0:00:09]} Bg7 {[%emt 0:00:23]} 13. Nc2 {[%emt 0:00:01]} O-O {[%emt 0:00:11]} 14. Nce3 {[%emt 0:00:07]} Be6 {[%emt 0:00:06]} 15. Bd3 {[%emt 0:00:10]} f5 {[%emt 0:01:04]} 16. O-O {[%emt 0:00:02]} Ne7 {[%emt 0:01:37]} 17. Bc2 {[%emt 0:05:46]} Nxd5 {[%emt 0:03:36]} 18. Nxd5 {[%emt 0:01:33]} Rc8 {[%emt 0:01:46]} 19. a4 {[%emt 0:02:49]} (19. Bb3 $14) 19... Rc4 {[%emt 0:09:19]} 20. axb5 {[%emt 0:05:34]} axb5 {[%emt 0:01:40]} 21. Bb3 {[%emt 0:02:01]} Rh4 {[%emt 0:04:11] [#]} 22. Ra7 $14 {[%emt 0:11:58]} ({Better is} 22. Ra8 $3 $18 {[%mdl 512]} Qxa8 23. Nc7 {[%mdl 64] Double Attack}) 22... Rh6 {[%emt 0:02:28]} 23. Nc7 {[%emt 0:11:31]} Bf7 {[%emt 0:07:42]} 24. Bxf7+ {[%emt 0:01:03]} Kxf7 {[%emt 0:01:07]} 25. Qd5+ {[%emt 0:03:08]} Kg6 {[%emt 0:02:25]} 26. Ne6 {[%emt 0:00:55]} Qh4 {[%emt 0:00:46]} 27. Nxf8+ {[%emt 0:03:28]} Bxf8 {[%emt 0:00:49]} 28. Qg8+ {[%emt 0:00:16]} Kh5 {[%emt 0:00:40]} 29. Qxf8 {[%emt 0:00:17]} Kg4 {[%emt 0:00:10]} 30. f3+ {[%emt 0:00:40]} Kh5 {[%emt 0:00:13]} 31. Qxf5+ {[%emt 0:00:18]} Qg5 {[%emt 0:00:12]} 32. Qxg5+ {[%emt 0:00:24]} 1-0

[Event "55th Rubinstein Memorial-C 2019"]
[Site "Polanica-Zdroj"]
[Date "2019.08.21"]
[Round "5.29"]
[White "Ziemski, Przemyslaw"]
[Black "Kaminski, Mateusz"]
[Result "1/2-1/2"]
[ECO "A30"]
[WhiteElo "1759"]
[BlackElo "1544"]
[Annotator "NA"]
[PlyCount "120"]
[EventDate "2019.08.17"]
[EventType "swiss"]
[EventCountry "POL"]
[SourceTitle "playchess.com"]
[Source "ChessBase"]
[SourceQuality "1"]
[TimeControl "40/5400+30:1800+30"]

1. c4 {[%emt 0:00:00]} c5 {[%emt 0:00:00]} 2. e4 {[%emt 0:00:00]} Nc6 {[%emt 0:00:00]} 3. Nc3 {[%emt 0:00:00]} Nf6 {[%emt 0:00:19]} 4. g3 {[%emt 0:00:17]} d6 {[%emt 0:02:33]} 5. Bg2 {[%emt 0:00:12]} g6 {[%emt 0:02:01]} 6. Nge2 {[%emt 0:01:02]} Bg7 {[%emt 0:00:17]} 7. O-O {[%emt 0:00:12]} O-O {[%emt 0:00:09]} 8. d3 {[%emt 0:00:18]} Ne8 {[%emt 0:03:42]} 9. Be3 {[%emt 0:04:28]} e5 {[%emt 0:00:48]} 10. Qd2 {[%emt 0:01:51]} Be6 {[%emt 0:01:31]} 11. Nd5 {[%emt 0:02:45]} Ne7 {[%emt 0:10:13]} 12. f4 {[%emt 0:07:25]} Bxd5 {[%emt 0:01:51]} 13. cxd5 {[%emt 0:01:10]} f5 {[%emt 0:00:22]} 14. fxe5 {[%emt 0:06:44]} Bxe5 {[%emt 0:00:37]} 15. d4 {[%emt 0:08:37]} cxd4 {[%emt 0:01:01]} 16. Bxd4 {[%emt 0:03:43]} Ng7 {[%emt 0:05:44]} 17. Rac1 {[%emt 0:04:57]} Bxd4+ {[%emt 0:13:33]} 18. Qxd4 {[%emt 0:02:02]} Qa5 {[%emt 0:00:36]} 19. Nc3 {[%emt 0:06:58]} fxe4 {[%emt 0:12:36]} 20. g4 {[%emt 0:07:30]} Rxf1+ {[%emt 0:20:37]} 21. Rxf1 Qc5 {[%emt 0:07:14]} 22. Qxc5 dxc5 23. d6 {[%emt 0:01:23]} Nc6 {[%emt 0:05:05]} 24. Nxe4 {[%emt 0:00:13]} Ne6 {[%emt 0:02:02]} 25. Nf6+ {[%emt 0:02:55]} Kg7 {[%emt 0:00:33]} 26. Bd5 {[%emt 0:01:31]} Rf8 {[%emt 0:03:58]} 27. Nd7 {[%emt 0:10:18]} Rxf1+ {[%emt 0:01:01]} 28. Kxf1 {[%emt 0:00:02]} Ncd8 {[%emt 0:00:54]} 29. Kf2 {[%emt 0:03:22]} b6 {[%emt 0:03:14]} 30. Ke3 {[%emt 0:00:40]} Nf8 {[%emt 0:01:14]} 31. Nxf8 {[%emt 0:03:36]} Kxf8 {[%emt 0:00:03]} 32. Ke4 {[%emt 0:00:22]} Nf7 {[%emt 0:01:38]} 33. d7 {[%emt 0:00:13]} Nd8 {[%emt 0:00:05]} 34. g5 {[%emt 0:02:15]} Ke7 {[%emt 0:00:38]} 35. Ke5 {[%emt 0:02:58]} Kxd7 36. Kf6 {[%emt 0:00:09]} Kd6 {[%emt 0:01:19]} 37. Bg8 {[%emt 0:00:15]} b5 {[%emt 0:00:21]} 38. Bxh7 {[%emt 0:00:07]} Ne6 {[%emt 0:00:19]} 39. Bxg6 {[%emt 0:00:36]} Nf4 {[%emt 0:00:41]} 40. h4 {[%emt 0:00:21]} c4 {[%emt 0:00:18]} 41. h5 {[%emt 0:30:14]} b4 {[%emt 0:30:49]} 42. h6 {[%emt 0:03:06]} Nxg6 {[%emt 0:00:25]} 43. Kxg6 {[%emt 0:00:02]} c3 {[%emt 0:00:10]} 44. bxc3 {[%emt 0:00:02]} bxc3 {[%emt 0:00:08]} 45. h7 {[%emt 0:00:09]} c2 {[%emt 0:00:02]} 46. h8=Q {[%emt 0:00:24]} c1=Q {[%emt 0:00:02]} 47. Qd8+ {[%emt 0:00:31]} Ke6 {[%emt 0:01:19]} 48. Qf6+ {[%emt 0:00:30]} Kd5 {[%emt 0:00:47]} 49. Qf7+ {[%emt 0:03:01]} Kd6 {[%emt 0:00:37]} 50. Qxa7 {[%emt 0:01:32]} Qc2+ {[%emt 0:00:20]} 51. Kh6 {[%emt 0:00:36]} Qh2+ {[%emt 0:00:31]} 52. Kg6 {[%emt 0:01:49]} Qc2+ {[%emt 0:00:30]} 53. Kh5 {[%emt 0:00:24]} Qh2+ {[%emt 0:00:23]} 54. Kg4 {[%emt 0:00:12]} Qg2+ {[%emt 0:00:42]} 55. Kf4 {[%emt 0:00:11]} Qh2+ {[%emt 0:01:02]} 56. Kf3 {[%emt 0:00:21]} Qh3+ {[%emt 0:00:31]} 57. Ke4 {[%emt 0:01:44]} Qg4+ {[%emt 0:00:17]} 58. Kd3 {[%emt 0:00:18]} Qxg5 {[%emt 0:00:25]} 59. Qb6+ {[%emt 0:00:11]} Kd7 {[%emt 0:00:16]} 60. a4 {[%emt 0:02:55]} Qd5+ {[%emt 0:00:22] Ke4} 1/2-1/2

[Event "55th Rubinstein Memorial-C 2019"]
[Site "Polanica-Zdroj"]
[Date "2019.08.21"]
[Round "5.30"]
[White "Gromada, Andrzej"]
[Black "Hasterok, Lukasz"]
[Result "0-1"]
[ECO "A06"]
[WhiteElo "1721"]
[BlackElo "1531"]
[Annotator "NA"]
[PlyCount "106"]
[EventDate "2019.08.17"]
[EventType "swiss"]
[EventCountry "POL"]
[SourceTitle "playchess.com"]
[Source "ChessBase"]
[SourceQuality "1"]
[TimeControl "40/5400+30:1800+30"]

1. Nf3 d5 2. c4 c6 3. e3 Nf6 4. Nc3 g6 5. d4 Bg7 6. Bd3 O-O 7. O-O Nbd7 8. cxd5 cxd5 9. Qb3 Nb6 10. Ne5 Bf5 11. Be2 Ne4 12. a4 Nxc3 13. bxc3 Bxe5 14. dxe5 Qc7 15. f4 Rac8 16. Bd2 Nc4 17. Bxc4 dxc4 18. Qb4 Rfd8 19. Rf2 Rd3 20. Ra2 Rcd8 21. h3 h5 22. Kh2 Be4 23. Kg1 h4 24. Kh2 g5 25. Qb5 a6 26. Qb2 Qc5 27. Re2 Bc6 28. Qc1 f5 29. exf6 exf6 30. Qe1 gxf4 31. Qxh4 fxe3 32. Qg3+ Kf7 33. Bxe3 Qa5 34. Qh4 Qe5+ 35. Bf4 Qf5 36. Bc7 Rg8 37. Qxc4+ Bd5 38. Qc5 Qf1 39. Re7+ Kg6 40. Rf2 Qd1 41. Re3 Rxe3 42. Qxe3 Qxa4 43. Bb6 Qe4 44. Qd2 Kf7 45. Bd4 Rg6 46. Re2 Qf5 47. Qe1 Qf4+ 48. Kg1 Qd6 49. Qd2 Qg3 50. Kf1 Bc4 51. Bc5 Qxg2+ 52. Ke1 Qh1+ 53. Kf2 Rg2+ 0-1

[Event "55th Rubinstein Memorial-C 2019"]
[Site "Polanica-Zdroj"]
[Date "2019.08.21"]
[Round "5.31"]
[White "Rog, Mateusz"]
[Black "Kolodziejski, Piotr"]
[Result "0-1"]
[ECO "B47"]
[WhiteElo "1473"]
[BlackElo "1701"]
[Annotator "NA"]
[PlyCount "80"]
[EventDate "2019.08.17"]
[EventType "swiss"]
[EventCountry "POL"]
[SourceTitle "playchess.com"]
[Source "ChessBase"]
[SourceQuality "1"]
[TimeControl "40/5400+30:1800+30"]

1. e4 {[%emt 0:00:00]} c5 {[%emt 0:00:00]} 2. Nf3 {[%emt 0:00:08]} Nc6 {[%emt 0:00:06]} 3. d4 {[%emt 0:00:07]} cxd4 {[%emt 0:00:06]} 4. Nxd4 {[%emt 0:00:07]} e6 {[%emt 0:00:06]} 5. Nc3 {[%emt 0:00:07]} Qc7 {[%emt 0:00:09]} 6. Nxc6 {[%emt 0:01:07]} bxc6 {[%emt 0:01:09]} 7. Bd3 {[%emt 0:00:18]} Nf6 {[%emt 0:01:31]} 8. O-O {[%emt 0:00:35]} Be7 {[%emt 0:01:43]} 9. Re1 {[%emt 0:03:24]} d5 {[%emt 0:01:47]} 10. e5 {[%emt 0:01:33]} Nd7 {[%emt 0:00:09]} 11. Qg4 {[%emt 0:00:47]} g6 {[%emt 0:03:39]} 12. Bf4 {[%emt 0:06:55]} g5 {[%emt 0:15:43]} 13. Bd2 {[%emt 0:03:35]} Nxe5 {[%emt 0:04:47]} 14. Qh5 {[%emt 0:03:53]} Nxd3 {[%emt 0:03:12]} 15. cxd3 {[%emt 0:00:09]} h6 {[%emt 0:03:38]} 16. Ne2 {[%emt 0:02:16]} Bf6 {[%emt 0:05:40]} 17. Bc3 {[%emt 0:06:36]} Bxc3 {[%emt 0:07:43]} 18. bxc3 {[%emt 0:00:12]} c5 {[%emt 0:02:11]} 19. Ng3 {[%emt 0:00:49]} Kf8 {[%emt 0:05:33]} 20. Re3 {[%emt 0:05:08]} Bd7 {[%emt 0:07:04]} 21. Rf3 {[%emt 0:01:27]} Be8 {[%emt 0:05:29]} 22. Qg6 {[%emt 0:04:20]} Qe5 {[%emt 0:01:28]} 23. Rb1 {[%emt 0:02:20]} f5 {[%emt 0:03:28]} 24. d4 {[%emt 0:02:00]} Bxg6 {[%emt 0:00:30]} 25. dxe5 {[%emt 0:00:09]} Rh7 {[%emt 0:02:47]} 26. Rb5 {[%emt 0:01:31]} Rc7 {[%emt 0:01:07]} 27. c4 {[%emt 0:01:04]} d4 {[%emt 0:01:18]} 28. Rfb3 {[%emt 0:00:33]} f4 {[%emt 0:01:20]} 29. Nf1 {[%emt 0:00:33]} Bc2 {[%emt 0:01:34]} 30. Rb8+ {[%emt 0:01:23]} Rxb8 {[%emt 0:00:08]} 31. Rxb8+ {[%emt 0:00:05]} Kf7 {[%emt 0:01:07]} 32. Rh8 {[%emt 0:01:03]} Rb7 {[%emt 0:01:18]} 33. Rxh6 {[%emt 0:01:52]} Rb1 {[%emt 0:00:24]} 34. Rh3 {[%emt 0:05:25]} d3 {[%emt 0:01:58]} 35. Rh7+ {[%emt 0:00:45]} Ke8 {[%emt 0:00:47]} 36. Rh8+ {[%emt 0:02:51]} Kd7 {[%emt 0:00:04]} 37. Rh7+ {[%emt 0:00:06]} Kc6 {[%emt 0:00:37]} 38. Re7 {[%emt 0:01:32]} d2 {[%emt 0:00:30]} 39. Rxe6+ {[%emt 0:00:09]} Kc7 {[%emt 0:00:05]} 40. Rd6 {[%emt 0:00:44]} d1=Q {[%emt 0:00:12]} 0-1